fUSD/lending_fUSD_20250416
["ID","MTS","AMOUNT","RATE_DAILY","PERIOD"]
[358194540,1744827064990,-231.28369723,0.00055479,3]
[358194541,1744827065000,-239.84119403,0.00055479,3]
[358194542,1744827065010,-248.71531821,0.00055479,3]
[358194543,1744827065019,-257.91778498,0.00055479,3]
[358194544,1744827065028,-267.46074303,0.00055479,3]
[358194545,1744827065038,-277.35679052,0.00055479,3]
[358194546,1744827065048,-287.61899177,0.00055479,3]
[358194547,1744827065058,-298.26089446,0.00055479,3]
[358194548,1744827065067,-309.29654756,0.00055479,3]
[358194549,1744827065076,-320.74051982,0.00055479,3]
[358194550,1744827065087,-332.60791905,0.00055479,3]
[358194551,1744827065096,-344.91441206,0.00055479,3]
[358194552,1744827065105,-357.6762453,0.00055479,3]
[358194553,1744827065114,-370.91026638,0.00055479,3]
[358194554,1744827065124,-384.63394623,0.00055479,3]
[358194555,1744827065133,-600.0,0.00055479,3]
[358194556,1744827065143,-500.0,0.00055479,3]
[358194557,1744827065153,-500.0,0.00055479,120]
[358194558,1744827065162,-500.0,0.00055479,120]
[358194559,1744827065176,-500.0,0.00055479,120]
[358194560,1744827065186,-500.0,0.00055479,120]
[358194561,1744827065196,-500.0,0.00055479,120]
[358194562,1744827065206,-500.0,0.00055479,120]
[358194563,1744827065216,-987.72,0.00055479,120]
[358194564,1744827065226,-500.0,0.00055479,120]
[358194565,1744827065236,-500.0,0.00055479,120]
[358194566,1744827065245,-500.0,0.00055479,120]
[358194567,1744827065254,-2262.76,0.00055479,120]
[358194568,1744827065264,-500.0,0.00055479,120]
[358194569,1744827065273,-746.39,0.00055479,120]
[358194570,1744827065282,-2323.52,0.00055479,120]
[358194571,1744827065291,-1172.12,0.00055479,120]
[358194572,1744827065302,-500.0,0.00055479,120]
[358194573,1744827065311,-500.0,0.00055479,120]
[358194574,1744827065320,-500.0,0.00055479,120]
[358194575,1744827065328,-218.17617485,0.00055479,120]
[358194576,1744827065337,-500.0,0.0005548,120]
[358194577,1744827065346,-500.0,0.0005548,120]
[358194578,1744827065355,-500.0,0.0005548,120]
[358194579,1744827065364,-1000.0,0.0005548,120]
[358194580,1744827065373,-500.0,0.0005548,120]
[358194581,1744827065382,-500.0,0.0005548,120]
[358194582,1744827065390,-500.0,0.0005548,120]
[358194583,1744827065399,-500.0,0.0005548,120]
[358194584,1744827065408,-500.0,0.0005548,120]
[358194585,1744827065417,-500.0,0.0005548,120]
[358194586,1744827065430,-500.0,0.0005548,120]
[358194587,1744827065440,-500.0,0.0005548,120]
[358194588,1744827065449,-500.0,0.0005548,120]
[358194589,1744827065461,-500.0,0.0005548,120]
[358194590,1744827065471,-500.0,0.0005548,120]
[358194591,1744827065480,-500.0,0.0005548,120]
[358194592,1744827065490,-500.0,0.0005548,120]
[358194593,1744827065499,-500.0,0.0005548,120]
[358194594,1744827065509,-500.0,0.0005548,120]
[358194595,1744827065518,-500.0,0.0005548,120]
[358194596,1744827065527,-162.57740786,0.0005548,120]
[358194597,1744827065539,-500.0,0.0005548,120]
[358194598,1744827065549,-500.0,0.0005548,120]
[358194599,1744827065559,-500.0,0.0005548,120]
[358194600,1744827065568,-300.0,0.0005548,120]
[358194601,1744827065578,-500.0,0.0005548,120]
[358194602,1744827065588,-500.0,0.0005548,120]
[358194603,1744827065598,-500.0,0.0005548,120]
[358194604,1744827065607,-1000.0,0.0005548,120]
[358194605,1744827065617,-500.0,0.0005548,120]
[358194606,1744827065627,-500.0,0.0005548,120]
[358194607,1744827065637,-500.0,0.0005548,120]
[358194608,1744827065647,-500.0,0.0005548,120]
[358194609,1744827065657,-500.0,0.0005548,120]
[358194610,1744827065666,-500.0,0.0005548,120]
[358194611,1744827065682,-500.0,0.0005548,120]
[358194612,1744827065692,-500.0,0.0005548,120]
[358194613,1744827065702,-500.0,0.0005548,120]
[358194614,1744827065711,-500.0,0.0005548,120]
[358194615,1744827065720,-500.0,0.0005548,120]
[358194616,1744827065730,-500.0,0.0005548,120]
[358194617,1744827065740,-500.0,0.0005548,120]
[358194618,1744827065751,-500.0,0.0005548,14]
[358194619,1744827065760,-500.0,0.0005548,120]
[358194620,1744827065769,-500.0,0.0005548,120]
[358194621,1744827065779,-500.0,0.0005548,120]
[358194622,1744827065787,-500.0,0.0005548,120]
[358194623,1744827065796,-500.0,0.0005548,120]
[358194624,1744827065805,-500.0,0.0005548,14]
[358194625,1744827065814,-500.0,0.0005548,120]
[358194626,1744827065823,-500.0,0.0005548,120]
[358194627,1744827065833,-500.0,0.0005548,120]
[358194628,1744827065842,-500.0,0.0005548,120]
[358194629,1744827065851,-500.0,0.0005548,120]
[358194630,1744827065860,-369.22446255,0.0005548,120]
[358194631,1744827065870,-500.0,0.0005548,120]
[358194632,1744827065879,-500.0,0.0005548,120]
[358194633,1744827065886,-500.0,0.0005548,120]
[358194634,1744827065894,-545.52216854,0.0005548,120]
[358194635,1744827065900,-500.0,0.0005548,120]
[358194636,1744827065907,-500.0,0.0005548,120]
[358194637,1744827065913,-500.0,0.0005548,120]
[358194638,1744827065926,-500.0,0.0005548,120]
[358194639,1744827065935,-500.0,0.0005548,120]
[358194640,1744827065944,-595.28313583,0.0005548,120]
[358194641,1744827065951,-500.0,0.0005548,120]
[358194642,1744827065957,-500.0,0.0005548,120]
[358194643,1744827065965,-500.0,0.0005548,120]
[358194644,1744827065972,-500.0,0.0005548,120]
[358194645,1744827065979,-500.0,0.0005548,120]
[358194646,1744827065987,-500.0,0.0005548,120]
[358194647,1744827065994,-500.0,0.0005548,120]
[358194648,1744827066004,-500.0,0.0005548,120]
[358194649,1744827066014,-500.0,0.0005548,120]
[358194650,1744827066023,-500.0,0.0005548,120]
[358194651,1744827066033,-554.46,0.0005548,120]
[358194652,1744827066042,-500.0,0.0005548,120]
[358194653,1744827066055,-500.0,0.00055485,120]
[358194654,1744827066064,-1622.9,0.00055485,120]
[358194655,1744827066074,-943.13,0.00055485,120]
[358194656,1744827066085,-500.0,0.00055485,120]
[358194657,1744827066094,-679.62,0.00055486,120]
[358194658,1744827066104,-141560.42,0.00055486,7]
[358194659,1744827066114,-763.98,0.00055486,120]
[358194660,1744827066124,-500.0,0.00055486,120]
[358194661,1744827066134,-1010.39,0.00055486,120]
[358194662,1744827066144,-500.0,0.00055486,118]
[358194663,1744827066154,-500.0,0.00055486,120]
[358194664,1744827066163,-508.14,0.00055486,120]
[358194665,1744827066176,-151.0,0.00055486,120]
[358194666,1744827066186,-568.42,0.00055486,120]
[358194667,1744827066195,-227.464781,0.00055486,120]
[358194668,1744827066205,-183.773614,0.00055486,120]
[358194669,1744827066214,-500.0,0.00055486,120]
[358194670,1744827066223,-183.773614,0.00055486,120]
[358194671,1744827066232,-500.0,0.00055486,120]
[358194672,1744827066241,-500.0,0.00055486,120]
[358194673,1744827066251,-3251.57,0.00055486,120]
[358194674,1744827066260,-534.58,0.00055486,120]
[358194675,1744827066270,-500.0,0.00055486,120]
[358194676,1744827066279,-1261.38,0.00055487,120]
[358194677,1744827066289,-500.0,0.00055487,120]
[358194678,1744827066298,-500.0,0.00055487,120]
[358194679,1744827066308,-1019.99,0.00055487,120]
[358194680,1744827066318,-502.73,0.00055487,8]
[358194681,1744827066327,-1603.81,0.00055487,120]
[358194682,1744827066336,-500.0,0.00055487,120]
[358194683,1744827066346,-500.0,0.00055487,120]
[358194684,1744827066355,-500.0,0.00055487,120]
[358194685,1744827066365,-500.0,0.00055487,120]
[358194686,1744827066375,-500.0,0.00055487,120]
[358194687,1744827066384,-500.0,0.00055487,120]
[358194688,1744827066393,-500.0,0.00055487,120]
[358194689,1744827066403,-500.0,0.00055487,120]
[358194690,1744827066414,-500.0,0.00055487,120]
[358194691,1744827066430,-500.0,0.00055487,120]
[358194692,1744827066440,-500.0,0.00055487,120]
[358194693,1744827066449,-500.0,0.00055487,120]
[358194694,1744827066459,-500.0,0.00055487,120]
[358194695,1744827066469,-500.0,0.00055487,120]
[358194696,1744827066479,-500.0,0.00055487,120]
[358194697,1744827066490,-440.69982182,0.00055487,120]
[358194698,1744827066499,-500.0,0.00055487,120]
[358194699,1744827066509,-404.32,0.00055487,120]
[358194700,1744827066518,-500.0,0.00055487,120]
[358194701,1744827066526,-500.0,0.00055487,120]
[358194702,1744827066536,-500.0,0.00055487,120]
[358194703,1744827066545,-500.0,0.00055487,120]
[358194704,1744827066554,-567.38,0.00055487,120]
[358194705,1744827066563,-500.0,0.00055487,120]
[358194706,1744827066573,-500.0,0.00055487,120]
[358194707,1744827066581,-500.0,0.00055487,120]
[358194708,1744827066590,-500.0,0.00055487,120]
[358194709,1744827066599,-500.0,0.00055487,120]
[358194710,1744827066608,-1388.794015,0.00055487,120]
[358194711,1744827066617,-1388.794015,0.00055487,120]
[358194712,1744827066627,-2268.71,0.00055487,2]
[358194713,1744827066637,-500.0,0.00055487,120]
[358194714,1744827066646,-5480.77,0.00055487,120]
[358194715,1744827066655,-500.0,0.00055487,120]
[358194716,1744827066664,-165.100587,0.00055487,120]
[358194717,1744827066677,-165.100587,0.00055487,120]
[358194718,1744827066686,-500.0,0.00055487,120]
[358194719,1744827066695,-783.99,0.00055487,120]
[358194720,1744827066705,-500.0,0.00055487,120]
[358194721,1744827066714,-151.0,0.00055487,120]
[358194722,1744827066724,-477.30930553,0.00055487,120]
[358194723,1744827066734,-500.0,0.00055487,120]
[358194724,1744827066744,-618.184277,0.00055487,120]
[358194725,1744827066754,-500.0,0.00055487,120]
[358194726,1744827066764,-500.0,0.00055487,120]
[358194727,1744827066774,-500.0,0.00055487,120]
[358194728,1744827066783,-500.0,0.00055487,120]
[358194729,1744827066793,-500.0,0.00055487,120]
[358194730,1744827066802,-396.91,0.00055487,120]
[358194731,1744827066811,-500.0,0.00055487,120]
[358194732,1744827066821,-500.0,0.00055487,120]
[358194733,1744827066831,-500.0,0.00055487,120]
[358194734,1744827066841,-500.0,0.00055487,120]
[358194735,1744827066850,-667.3,0.00055487,120]
[358194736,1744827066859,-500.0,0.00055487,120]
[358194737,1744827066869,-500.0,0.00055487,120]
[358194738,1744827066878,-746.39,0.00055487,120]
[358194739,1744827066886,-524.38345755,0.00055487,120]
[358194740,1744827066893,-643.24,0.00055487,120]
[358194741,1744827067016,-500.0,0.00055487,120]
[358194742,1744827067025,-500.0,0.00055487,120]
[358194743,1744827067034,-500.0,0.00055487,120]
[358194744,1744827067044,-500.0,0.00055487,120]
[358194745,1744827067053,-500.0,0.00055487,120]
[358194746,1744827067062,-153.0,0.00055488,60]
[358194747,1744827067071,-153.0,0.00055488,60]
[358194748,1744827067081,-153.0,0.00055488,60]
[358194749,1744827067090,-153.0,0.00055488,60]
[358194750,1744827067099,-153.0,0.00055488,60]
[358194751,1744827067108,-1899.29,0.00055488,120]
[358194752,1744827067117,-1820.16,0.00055488,120]
[358194753,1744827067126,-500.0,0.00055488,120]
[358194754,1744827067135,-500.0,0.00055488,120]
[358194755,1744827067144,-533.62874379,0.00055488,120]
[358194756,1744827067153,-1002.91,0.00055488,120]
[358194757,1744827067162,-500.0,0.00055488,120]
[358194758,1744827067174,-7217.78,0.00055488,120]
[358194759,1744827067183,-1261.38,0.00055488,120]
[358194760,1744827067191,-500.0,0.00055488,120]
[358194761,1744827067200,-500.0,0.00055488,120]
[358194762,1744827067209,-151.0,0.00055488,120]
[358194763,1744827067219,-159.024588,0.00055488,120]
[358194764,1744827067227,-154.160517,0.00055488,120]
[358194765,1744827067236,-1019.99,0.00055488,120]
[358194766,1744827067246,-153.34803,0.00055488,120]
[358194767,1744827067255,-502.73,0.00055488,8]
[358194768,1744827067264,-1603.81,0.00055488,120]
[358194769,1744827067273,-151.0,0.00055488,120]
[358194770,1744827067283,-758.92,0.00055488,120]
[358194771,1744827067292,-500.0,0.00055488,120]
[358194772,1744827067301,-500.0,0.00055488,120]
[358194773,1744827067310,-743.87,0.00055488,120]
[358194774,1744827067320,-500.0,0.00055488,120]
[358194775,1744827067329,-577.07,0.00055488,120]
[358194776,1744827067339,-500.0,0.00055488,120]
[358194777,1744827067348,-500.0,0.00055488,120]
[358194778,1744827067357,-181.07887224,0.00055488,120]
[358194779,1744827067367,-612.54,0.00055488,120]
[358194780,1744827067376,-500.0,0.00055488,120]
[358194781,1744827067385,-500.0,0.00055488,120]
[358194782,1744827067394,-500.0,0.00055488,120]
[358194783,1744827067403,-500.0,0.00055488,120]
[358194784,1744827067412,-500.0,0.00055488,120]
[358194785,1744827067423,-151.0,0.00055488,120]
[358194786,1744827067432,-500.0,0.00055488,30]
[358194787,1744827067446,-500.0,0.00055488,120]
[358194788,1744827067455,-500.0,0.00055488,120]
[358194789,1744827067464,-500.0,0.00055488,120]
[358194790,1744827067474,-500.0,0.00055488,120]
[358194791,1744827067483,-500.0,0.00055488,120]
[358194792,1744827067494,-500.0,0.00055488,120]
[358194793,1744827067503,-544.74192297,0.00055488,120]
[358194794,1744827067512,-500.0,0.00055488,120]
[358194795,1744827067521,-500.0,0.00055488,120]
[358194796,1744827067532,-500.0,0.00055488,120]
[358194797,1744827067542,-500.0,0.00055488,120]
[358194798,1744827067551,-500.0,0.00055488,120]
[358194799,1744827067560,-500.0,0.00055488,120]
[358194800,1744827067569,-500.0,0.00055488,120]
[358194801,1744827067578,-500.0,0.00055488,120]
[358194802,1744827067588,-500.0,0.00055488,120]
[358194803,1744827067598,-500.0,0.00055488,120]
[358194804,1744827067607,-500.0,0.00055488,120]
[358194805,1744827067616,-500.0,0.00055488,120]
[358194806,1744827067626,-500.0,0.00055488,120]
[358194807,1744827067637,-500.0,0.00055488,120]
[358194808,1744827067647,-500.0,0.00055488,120]
[358194809,1744827067656,-500.0,0.00055488,120]
[358194810,1744827067667,-500.0,0.00055488,120]
[358194811,1744827067682,-500.0,0.00055488,120]
[358194812,1744827067692,-500.0,0.00055488,120]
[358194813,1744827067702,-500.0,0.00055488,120]
[358194814,1744827067711,-500.0,0.00055488,120]
[358194815,1744827067722,-550.33,0.00055488,120]
[358194816,1744827067732,-500.0,0.00055488,120]
[358194817,1744827067743,-500.0,0.00055488,120]
[358194818,1744827067752,-500.0,0.00055488,120]
[358194819,1744827067762,-500.0,0.00055488,120]
[358194820,1744827067771,-500.0,0.00055488,120]
[358194821,1744827067780,-500.0,0.00055488,120]
[358194822,1744827067790,-500.0,0.00055488,120]
[358194823,1744827067799,-500.0,0.00055488,120]
[358194824,1744827067809,-500.0,0.00055488,120]
[358194825,1744827067819,-500.0,0.00055488,120]
[358194826,1744827067828,-500.0,0.00055488,120]
[358194827,1744827067837,-517.71,0.00055488,120]
[358194828,1744827067846,-500.0,0.00055488,120]
[358194829,1744827067857,-198.26,0.00055488,120]
[358194830,1744827067866,-500.0,0.00055488,120]
[358194831,1744827067876,-500.0,0.00055488,120]
[358194832,1744827067885,-5480.77,0.00055488,120]
[358194833,1744827067895,-500.0,0.00055488,120]
[358194834,1744827067905,-2535.22,0.00055488,120]
[358194835,1744827067916,-500.0,0.00055488,3]
[358194836,1744827067930,-500.0,0.00055488,120]
[358194837,1744827067940,-659.31,0.00055488,120]
[358194838,1744827067950,-783.99,0.00055488,120]
[358194839,1744827067961,-765.25,0.00055488,120]
[358194840,1744827067971,-500.0,0.00055488,120]
[358194841,1744827067981,-500.0,0.00055488,120]
[358194842,1744827067991,-363.29,0.00055488,120]
[358194843,1744827068000,-406.69,0.00055488,120]
[358194844,1744827068009,-500.0,0.00055488,120]
[358194845,1744827068019,-500.0,0.00055488,120]
[358194846,1744827068030,-500.0,0.00055488,120]
[358194847,1744827068041,-500.0,0.00055488,120]
[358194848,1744827068050,-500.0,0.00055488,120]
[358194849,1744827068060,-500.0,0.00055488,120]
[358194850,1744827068069,-521.41,0.00055488,120]
[358194851,1744827068080,-500.0,0.00055488,120]
[358194852,1744827068090,-500.0,0.00055488,120]
[358194853,1744827068101,-541.38,0.00055488,120]
[358194854,1744827068111,-500.0,0.00055488,120]
[358194855,1744827068121,-215.64,0.00055488,120]
[358194856,1744827068132,-500.0,0.00055488,120]
[358194857,1744827068141,-500.0,0.00055488,120]
[358194858,1744827068152,-500.0,0.00055488,120]
[358194859,1744827068162,-500.0,0.00055488,120]
[358194860,1744827068177,-500.0,0.00055488,120]
[358194861,1744827068187,-987.72,0.00055488,120]
[358194862,1744827068199,-500.0,0.00055488,120]
[358194863,1744827068210,-500.0,0.00055488,120]
[358194864,1744827068219,-500.0,0.00055488,120]
[358194865,1744827068229,-500.0,0.00055488,120]
[358194866,1744827068240,-500.0,0.00055488,120]
[358194867,1744827068251,-500.0,0.00055488,120]
[358194868,1744827068261,-500.0,0.00055488,120]
[358194869,1744827068272,-500.0,0.00055488,120]
[358194870,1744827068283,-500.0,0.00055488,120]
[358194871,1744827068294,-2262.76,0.00055488,120]
[358194872,1744827068303,-500.0,0.00055488,120]
[358194873,1744827068313,-500.0,0.00055488,120]
[358194874,1744827068323,-500.0,0.00055488,120]
[358194875,1744827068333,-667.3,0.00055488,120]
[358194876,1744827068342,-500.0,0.00055488,120]
[358194877,1744827068353,-500.0,0.00055488,120]
[358194878,1744827068363,-500.0,0.00055488,120]
[358194879,1744827068373,-2323.52,0.00055488,120]
[358194880,1744827068383,-500.0,0.00055488,120]
[358194881,1744827068395,-1172.12,0.00055488,120]
[358194882,1744827068404,-500.0,0.00055488,120]
[358194883,1744827068413,-219.57154044,0.00055488,120]
[358194884,1744827068430,-500.0,0.00055488,120]
[358194885,1744827068445,-500.0,0.00055488,120]
[358194886,1744827068456,-500.0,0.00055488,120]
[358194887,1744827068467,-500.0,0.00055488,120]
[358194888,1744827068478,-500.0,0.00055489,120]
[358194889,1744827068490,-500.0,0.00055489,120]
[358194890,1744827068502,-500.0,0.00055489,120]
[358194891,1744827068513,-1000.0,0.00055489,120]
[358194892,1744827068524,-500.0,0.00055489,120]
[358194893,1744827068535,-500.0,0.00055489,120]
[358194894,1744827068547,-500.0,0.00055489,120]
[358194895,1744827068558,-500.0,0.00055489,120]
[358194896,1744827068570,-500.0,0.00055489,120]
[358194897,1744827068580,-500.0,0.00055489,120]
[358194898,1744827068591,-500.0,0.00055489,120]
[358194899,1744827068601,-500.0,0.00055489,120]
[358194900,1744827068611,-500.0,0.00055489,120]
[358194901,1744827068621,-500.0,0.00055489,120]
[358194902,1744827068631,-500.0,0.00055489,120]
[358194903,1744827068641,-500.0,0.00055489,120]
[358194904,1744827068651,-500.0,0.00055489,120]
[358194905,1744827068661,-300.0,0.00055489,120]
[358194906,1744827068675,-500.0,0.00055489,120]
[358194907,1744827068688,-1000.0,0.00055489,120]
[358194908,1744827068698,-500.0,0.00055489,120]
[358194909,1744827068707,-500.0,0.00055489,120]
[358194910,1744827068717,-500.0,0.00055489,120]
[358194911,1744827068726,-500.0,0.00055489,120]
[358194912,1744827068736,-500.0,0.00055489,120]
[358194913,1744827068745,-500.0,0.00055489,14]
[358194914,1744827068754,-500.0,0.00055489,120]
[358194915,1744827068764,-500.0,0.00055489,120]
[358194916,1744827068773,-500.0,0.00055489,120]
[358194917,1744827068783,-500.0,0.00055489,120]
[358194918,1744827068793,-500.0,0.00055489,120]
[358194919,1744827068804,-500.0,0.00055489,120]
[358194920,1744827068813,-500.0,0.00055489,120]
[358194921,1744827068823,-402.15372072,0.00055489,120]
[358194922,1744827068833,-500.0,0.00055489,120]
[358194923,1744827068843,-500.0,0.00055489,120]
[358194924,1744827068853,-500.0,0.00055489,120]
[358194925,1744827068863,-587.61,0.00055489,120]
[358194926,1744827068872,-500.0,0.00055489,120]
[358194927,1744827068882,-500.0,0.00055489,120]
[358194928,1744827068891,-500.0,0.00055489,120]
[358194929,1744827068901,-500.0,0.00055489,120]
[358194930,1744827068910,-500.0,0.00055489,120]
[358194931,1744827068919,-500.0,0.00055489,120]
[358194932,1744827068933,-500.0,0.00055489,120]
[358194933,1744827068942,-554.46,0.00055489,120]
[358194934,1744827068952,-500.0,0.00055489,120]
[358194935,1744827068961,-444.16103678,0.0005549,7]
[358194936,1744827068971,-973.25,0.00055495,120]
[358194937,1744827068980,-2268.71,0.00055495,2]
[358194938,1744827068990,-500.0,0.00055495,120]
[358194939,1744827068999,-746.39,0.00055495,120]
[358194940,1744827069009,-1622.9,0.00055495,120]
[358194941,1744827069020,-943.13,0.00055495,120]
[358194942,1744827069030,-500.0,0.00055495,120]
[358194943,1744827069040,-500.0,0.00055495,120]
[358194944,1744827069050,-500.0,0.00055496,120]
[358194945,1744827069060,-1019.99,0.00055496,120]
[358194946,1744827069069,-502.73,0.00055496,8]
[358194947,1744827069081,-1603.81,0.00055496,120]
[358194948,1744827069092,-758.92,0.00055496,120]
[358194949,1744827069102,-500.0,0.00055496,120]
[358194950,1744827069112,-679.62,0.00055496,120]
[358194951,1744827069121,-141560.42,0.00055496,7]
[358194952,1744827069131,-763.98,0.00055496,120]
[358194953,1744827069142,-500.0,0.00055496,120]
[358194954,1744827069152,-1388.794015,0.00055496,120]
[358194955,1744827069162,-1388.794015,0.00055496,120]
[358194956,1744827069175,-500.0,0.00055496,120]
[358194957,1744827069184,-2268.71,0.00055496,2]
[358194958,1744827069194,-517.71,0.00055496,120]
[358194959,1744827069204,-500.0,0.00055496,120]
[358194960,1744827069213,-500.0,0.00055496,120]
[358194961,1744827069223,-5480.77,0.00055496,120]
[358194962,1744827069232,-2535.22,0.00055496,120]
[358194963,1744827069241,-165.100587,0.00055496,120]
[358194964,1744827069251,-500.0,0.00055496,120]
[358194965,1744827069260,-1010.39,0.00055496,120]
[358194966,1744827069269,-165.100587,0.00055496,120]
[358194967,1744827069277,-312.41,0.00055496,3]
[358194968,1744827069286,-289.18106486,0.00055496,118]
[358194969,1744827069304,-210.81893514,0.00055496,118]
[358194970,1744827069312,-281.48106486,0.00055496,120]
[358194971,1744827069327,-377.82893514,0.00055496,120]
[358194972,1744827069335,-783.99,0.00055496,120]
[358194973,1744827069343,-765.25,0.00055496,120]
[358194974,1744827069352,-500.0,0.00055496,120]
[358194975,1744827069360,-500.0,0.00055496,120]
[358194976,1744827069368,-151.0,0.00055496,120]
[358194977,1744827069377,-508.14,0.00055496,120]
[358194978,1744827069387,-500.0,0.00055496,120]
[358194979,1744827069396,-618.184277,0.00055496,120]
[358194980,1744827069406,-500.0,0.00055496,120]
[358194981,1744827069416,-223.17486367,0.00055496,120]
[358194982,1744827069434,-276.82513633,0.00055496,120]
[358194983,1744827069443,-500.0,0.00055496,120]
[358194984,1744827069453,-500.0,0.00055496,120]
[358194985,1744827069463,-439.01185246,0.00055496,120]
[358194986,1744827069475,-60.98814754,0.00055496,120]
[358194987,1744827069486,-151.0,0.00055496,120]
[358194988,1744827069496,-500.0,0.00055496,120]
[358194989,1744827069506,-500.0,0.00055496,120]
[358194990,1744827069516,-75.66244785,0.00055496,120]
[358194991,1744827069716,-285.56665977,0.00055496,120]
[358194992,1744827069728,-626.49089238,0.00055496,120]
[358194993,1744827069738,-183.773614,0.00055496,120]
[358194994,1744827069747,-432.46231266,0.00055496,120]
[358194995,1744827069759,-67.53768734,0.00055496,120]
[358194996,1744827069768,-183.773614,0.00055496,120]
[358194997,1744827069779,-500.0,0.00055496,120]
[358194998,1744827069789,-500.0,0.00055496,120]
[358194999,1744827069799,-500.0,0.00055496,120]
[358195000,1744827069808,-500.0,0.00055496,120]
[358195001,1744827069818,-500.0,0.00055496,120]
[358195002,1744827069827,-2262.76,0.00055496,120]
[358195003,1744827069836,-500.0,0.00055496,120]
[358195004,1744827069845,-500.0,0.00055496,120]
[358195005,1744827069855,-746.39,0.00055496,120]
[358195006,1744827069864,-1639.10429866,0.00055496,120]
[358195007,1744827069879,-1612.46570134,0.00055496,120]
[358195008,1744827069888,-2323.52,0.00055496,120]
[358195009,1744827069897,-1622.9,0.00055496,120]
[358195010,1744827069906,-1172.12,0.00055496,120]
[358195011,1744827069915,-534.58,0.00055496,120]
[358195012,1744827069929,-943.13,0.00055496,120]
[358195013,1744827069938,-349.91896873,0.00055496,120]
[358195014,1744827069948,-95.86418778,0.00055496,120]
[358195015,1744827069959,-404.13581222,0.00055496,120]
[358195016,1744827069968,-500.0,0.00055496,120]
[358195017,1744827069978,-285.77529874,0.00055496,120]
[358195018,1744827070021,-214.22470126,0.00055496,120]
[358195019,1744827070031,-500.0,0.00055496,120]
[358195020,1744827070040,-1899.29,0.00055497,120]
[358195021,1744827070048,-1820.16,0.00055497,120]
[358195022,1744827070058,-500.0,0.00055497,120]
[358195023,1744827070071,-500.0,0.00055497,120]
[358195024,1744827070082,-1002.91,0.00055497,120]
[358195025,1744827070092,-500.0,0.00055497,120]
[358195027,1744827070102,-119.75130294,0.00055497,120]
[358195028,1744827070115,-1601.44474163,0.00055497,120]
[358195087,1744827908512,10000.0,0.00018,2]
[358195088,1744827908539,10000.0,0.00018,2]
[358195089,1744827908564,10000.0,0.00018,2]
[358195090,1744827908589,10000.0,0.00018,2]
[358195091,1744827908614,10000.0,0.00018,2]
[358195092,1744827908639,10000.0,0.00018,2]
[358195093,1744827908664,10000.0,0.00018,2]
[358195094,1744827908688,10000.0,0.00018,2]
[358195095,1744827908716,2500.0,0.00018,2]
[358195096,1744827909069,-187.86968766,0.00018,2]
[358195102,1744827923222,-10000.0,0.00018,2]
[358195103,1744827923739,-10000.0,0.00018,2]